bitfinex-derivatives/quotes_ETHF0:USTF0_20220103
["timestamp","ask_amount","ask_price","bid_price","bid_amount"]
[1641179558761,0.229991,3798.0,3797.6,1.02341706]
[1641179559362,0.55976883,3797.9,3797.6,1.02341706]
[1641179559562,0.55976883,3797.9,3797.7,0.076609]
[1641179559762,0.55976883,3797.9,3797.6,1.02341706]
[1641179560965,0.229991,3797.8,3797.6,1.02341706]
[1641179561165,0.229991,3797.8,3797.7,1.20272116]
[1641179562165,0.229991,3797.8,3797.7,0.89526006]
[1641179562467,0.229991,3797.8,3797.4,2.90005006]
[1641179562765,0.892591,3797.8,3797.4,2.90005006]
[1641179563767,1.19232269,3797.5,3797.4,2.00479]
[1641179563966,1.19232269,3797.5,3797.4,2.081399]
[1641179564467,1.19232269,3797.5,3797.4,2.00479]
[1641179564667,0.6626,3797.8,3797.4,2.00479]
[1641179564869,1.22236883,3797.8,3797.4,2.00479]
[1641179565472,2.53862765,3797.8,3797.4,2.00479]
[1641179565669,1.22236883,3797.8,3797.4,2.00479]
[1641179565869,1.31632813,3797.6,3797.4,2.00479]
[1641179566069,0.229991,3797.5,3797.4,2.00479]
[1641179567272,1.31632813,3797.6,3797.4,2.00479]
[1641179567772,2.60144593,3797.7,3797.5,0.076609]
[1641179568173,1.25838609,3797.9,3797.5,0.076609]
[1641179568372,1.25838609,3797.9,3797.4,2.00479]
[1641179568775,4.30166428,3798.1,3797.4,2.00479]
[1641179569177,0.77003873,3798.2,3797.4,2.00479]
[1641179569980,1.31634026,3797.6,3797.4,2.00479]
[1641179570178,1.31623803,3797.9,3797.5,0.076609]
[1641179570578,0.77003873,3798.2,3797.5,0.076609]
[1641179570780,2.27003873,3798.2,3797.5,0.076609]
[1641179570978,1.78844065,3798.1,3797.5,0.076609]
[1641179571178,1.5,3798.0,3797.4,2.00479]
[1641179571379,1.78844065,3798.1,3797.4,2.00479]
[1641179571579,1.5,3798.0,3797.4,2.00479]
[1641179571781,3.28844065,3798.0,3797.4,2.00479]
[1641179573286,1.78844065,3797.9,3797.4,2.00479]
[1641179575989,1.78844065,3797.8,3797.4,2.00479]
[1641179576387,4.74579882,3797.8,3797.4,2.00479]
[1641179576588,16.07579882,3797.8,3797.4,2.00479]
[1641179576787,1.49046531,3797.6,3797.4,2.00479]
[1641179576989,0.229991,3797.5,3797.4,2.00479]
[1641179577587,2.13766531,3797.6,3797.4,2.081399]
[1641179577790,1.49046531,3797.5,3797.4,2.081399]
[1641179577988,1.49046531,3797.5,3797.4,2.00479]
[1641179578388,1.49046531,3797.5,3797.4,2.081399]
[1641179579891,1.49046531,3797.6,3797.4,2.081399]
[1641179580091,1.49046531,3797.6,3797.5,0.076609]
[1641179580291,1.49046531,3797.6,3797.4,2.00479]
[1641179580994,1.49046531,3797.7,3797.4,2.00479]
[1641179581193,0.229991,3797.6,3797.4,2.00479]
[1641179581691,1.49046531,3797.7,3797.5,0.076609]
[1641179582192,1.72045631,3797.7,3797.4,2.00479]
[1641179583192,1.72045631,3797.7,3797.5,0.076609]
[1641179583393,1.72045631,3797.7,3797.4,2.00479]
[1641179584495,1.49046531,3797.7,3797.5,0.076609]
[1641179584896,2.05015566,3797.6,3797.5,0.076609]
[1641179585295,2.28014666,3797.6,3797.1,1.02341706]
[1641179585501,2.05015566,3797.6,3797.1,1.02341706]
[1641179586299,2.05015566,3797.7,3797.2,0.89526006]
[1641179586699,2.05015566,3797.7,3797.2,2.90005006]
[1641179587399,1.49046531,3797.6,3797.2,2.00479]
[1641179587600,1.19230571,3797.4,3797.2,2.00479]
[1641179587800,1.19230571,3797.4,3797.2,2.081399]
[1641179588002,1.42229671,3797.4,3797.2,2.081399]
[1641179588401,0.229991,3797.4,3797.2,2.081399]
[1641179588600,1.72045631,3797.4,3797.3,0.30955593]
[1641179588799,1.49046531,3797.4,3797.3,0.30955593]
[1641179589501,1.72045631,3797.4,3797.3,0.30955593]
[1641179589702,1.49046531,3797.4,3797.3,0.30955593]
[1641179590402,1.49046531,3797.4,3797.3,0.38616493]
[1641179592106,1.49046531,3797.5,3797.3,0.38616493]
[1641179593110,0.229991,3797.4,3797.3,0.30955593]
[1641179593714,0.229991,3797.4,3797.3,1.18593222]
[1641179594514,1.49046531,3797.6,3797.3,1.26254122]
[1641179594715,0.55969035,3797.4,3797.3,0.076609]
[1641179595415,0.229991,3797.4,3797.2,3.19072222]
[1641179595616,1.49046531,3797.5,3797.3,0.076609]
[1641179595817,1.49046531,3797.5,3797.2,3.19072222]
[1641179596315,0.229991,3797.4,3797.2,3.19072222]
[1641179596916,0.55969035,3797.3,3797.2,3.19072222]
[1641179597721,0.55969035,3797.3,3797.2,3.26733122]
[1641179598118,0.55969035,3797.3,3797.2,3.19072222]
[1641179598919,0.55969035,3797.3,3797.2,2.00479]
[1641179599420,0.55969035,3797.3,3797.2,2.081399]
[1641179600021,0.78968135,3797.3,3797.2,2.00479]
[1641179600322,0.229991,3797.3,3797.2,2.00479]
[1641179601025,1.49046531,3797.4,3797.2,2.081399]
[1641179601224,0.55969035,3797.3,3797.2,2.081399]
[1641179601524,0.55969035,3797.3,3797.2,2.00479]
[1641179602024,1.49046531,3797.4,3797.2,2.00479]
[1641179602223,1.49046531,3797.4,3797.1,1.18593222]
[1641179602424,0.229991,3797.3,3797.1,1.18593222]
[1641179603225,1.49046531,3797.4,3797.2,0.076609]
[1641179604228,1.19394194,3797.3,3797.2,0.076609]
[1641179605527,1.19394194,3797.3,3797.0,2.132947]
[1641179605928,1.19394194,3797.3,3797.1,0.076609]
[1641179607430,1.19394194,3797.3,3797.0,2.132947]
[1641179607431,0.229991,3797.2,3797.0,2.132947]
[1641179607929,1.19394194,3797.3,3797.1,0.076609]
[1641179608831,1.19394194,3797.2,3797.1,0.076609]
[1641179609429,1.19394194,3797.2,3797.1,0.38615504]
[1641179610933,1.19394194,3797.3,3797.1,0.38615504]
[1641179612135,0.229991,3797.2,3797.1,0.30954604]
[1641179612336,0.229991,3797.2,3797.0,2.00479]
[1641179613235,1.19394194,3797.3,3797.1,0.076609]
[1641179613436,0.229991,3797.2,3797.0,2.00479]
[1641179613635,1.19394194,3797.3,3797.0,2.00479]
[1641179614138,1.19394194,3797.3,3797.1,0.076609]
[1641179614340,1.49046531,3797.4,3797.1,0.076609]
[1641179614341,1.49046531,3797.4,3797.1,1.26765668]
[1641179614739,1.78844065,3797.7,3797.2,1.5]
[1641179614940,2.23905723,3798.0,3797.6,1.5]
[1641179615141,2.98466684,3798.3,3797.6,2.0788]
[1641179615340,2.98466684,3798.3,3798.1,2.00479]
[1641179615539,2.98466684,3798.3,3798.2,0.076609]
[1641179616640,2.98466684,3798.3,3798.1,2.00479]
[1641179617039,29.9999,3798.8,3798.1,2.00479]
[1641179617040,29.9999,3798.8,3798.1,2.89742302]
[1641179617239,2.00479,3798.9,3798.2,0.076609]
[1641179617441,1.18770677,3798.8,3798.1,2.89742302]
[1641179617642,1.24455198,3798.6,3798.1,2.89742302]
[1641179618241,1.99815198,3798.6,3798.3,0.89263302]
[1641179618441,0.229991,3798.5,3798.3,0.89263302]
[1641179619342,0.55963594,3798.4,3798.1,2.00479]
[1641179619741,0.229991,3798.3,3798.1,2.00479]
[1641179621443,0.55963594,3798.2,3798.1,2.00479]
[1641179622447,0.78990255,3798.0,3797.8,0.89263302]
[1641179622645,0.229991,3797.9,3797.0,2.00479]
[1641179622844,1.5,3797.8,3797.0,2.00479]
[1641179623045,2.2098,3797.8,3797.0,2.00479]
[1641179623450,2.2098,3797.8,3797.6,2.00479]
[1641179623647,0.229991,3797.7,3797.6,2.00479]
[1641179624247,0.78962694,3797.7,3797.6,1e-08]
[1641179627352,0.78962694,3797.7,3797.0,2.00479]
[1641179628153,0.78962694,3797.7,3797.1,0.38661694]
[1641179628354,2.58068116,3797.7,3797.1,0.38661694]
[1641179629157,1.49258433,3797.4,3797.1,0.38661694]
[1641179629758,0.229991,3797.3,3797.1,0.38661694]
[1641179630761,0.55963594,3797.2,3797.1,0.38661694]
[1641179631159,0.78962694,3797.2,3797.1,0.38661694]
[1641179631761,0.55963594,3797.2,3797.1,0.38661694]
[1641179631960,0.55963594,3797.2,3797.1,0.46322594]
[1641179632661,0.78962694,3797.2,3797.1,0.38661694]
[1641179632861,0.55963594,3797.2,3797.1,0.46322594]
[1641179633062,1.19403403,3797.2,3797.1,0.38661694]
[1641179633863,1.19403403,3797.2,3797.1,0.46322594]
[1641179634062,1.49258433,3797.4,3797.1,0.46322594]
[1641179634263,1.49258433,3797.4,3797.1,1.65503791]
[1641179634964,0.229991,3797.3,3797.1,1.57842891]
[1641179635166,0.769391,3797.3,3797.2,1.57842891]
[1641179635366,0.5394,3797.3,3797.2,1.65503791]
[1641179636066,1.49258433,3797.5,3797.2,0.46322594]
[1641179636267,0.55963594,3797.3,3797.2,0.46322594]
[1641179637568,1.49258433,3797.8,3797.2,0.46322594]
[1641179638268,1.49258433,3797.8,3797.3,0.38661694]
[1641179638468,1.49258433,3797.8,3797.5,1.19085453]
[1641179638768,0.229991,3797.7,3797.5,1.19085453]
[1641179639468,1.49258433,3797.8,3797.6,0.076609]
[1641179639872,0.229991,3797.7,3797.6,1.19085453]
[1641179640071,2.08178433,3797.9,3797.6,1.19085453]
[1641179640770,0.229991,3797.8,3797.6,1.19085453]
[1641179641371,0.55963594,3797.7,3797.6,1.19085453]
[1641179641570,0.55963594,3797.7,3797.6,0.076609]
[1641179641770,0.55963594,3797.7,3797.5,1.57747147]
[1641179642172,0.55963594,3797.7,3797.6,0.38661694]
[1641179643072,0.229991,3797.7,3797.6,0.38661694]
[1641179643471,2.234781,3797.7,3797.6,0.38661694]
[1641179644374,2.234781,3797.7,3797.5,1.19085453]
[1641179644974,2.79441694,3797.7,3797.5,0.89340743]
[1641179645873,2.56442594,3797.7,3797.6,0.076609]
[1641179646071,2.00479,3797.7,3797.6,0.076609]
[1641179646476,2.234781,3797.7,3797.5,0.89340743]
[1641179647272,2.234781,3797.7,3796.8,0.36909775]
[1641179647273,2.234781,3797.7,3797.6,1.26250518]
[1641179648075,2.234781,3797.7,3797.5,0.89340743]
[1641179648773,2.234781,3797.7,3797.5,0.10341338]
[1641179649278,4.02583522,3797.7,3797.1,1.19085453]
[1641179650378,1.49256589,3797.4,3797.1,1.19085453]
[1641179650878,0.229991,3797.3,3797.1,1.19085453]
[1641179652180,1.49256589,3797.4,3797.2,0.076609]
[1641179652380,0.229991,3797.3,3797.1,1.19085453]
[1641179652980,1.72255689,3797.3,3797.0,1.19085453]
[1641179654182,1.49256589,3797.3,3797.1,0.076609]
[1641179654385,0.229991,3797.2,3797.0,1.19085453]
[1641179654582,1.49256589,3797.3,3797.0,1.19085453]
[1641179655287,1.49256589,3797.3,3797.1,0.076609]
[1641179656488,1.49256589,3797.3,3797.2,0.36241302]
[1641179657088,1.72255689,3797.3,3797.2,0.36241302]
[1641179658389,1.72255689,3797.3,3797.0,1.55326755]
[1641179658989,1.49256589,3797.3,3797.1,0.076609]
[1641179659190,0.229991,3797.2,3797.0,1.55326755]
[1641179659392,1.49256589,3797.4,3797.1,1.19085453]
[1641179659594,1.5,3797.2,3796.5,1.78694748]
[1641179659792,14.13897719,3797.4,3796.5,1.78694748]
[1641179659793,1.5,3796.9,3796.5,1.78694748]
[1641179659993,0.122356,3796.8,3796.5,1.78694748]
[1641179660192,0.229991,3796.7,3796.5,1.78694748]
[1641179660400,2.00479,3797.0,3796.6,1.576609]
[1641179660594,2.00479,3797.0,3796.6,32.50026669]
[1641179660793,1.49256589,3796.8,3796.6,32.50026669]
[1641179661194,1.49256589,3796.8,3796.7,0.128157]
[1641179662297,2.00479,3797.0,3796.7,0.128157]
[1641179662697,2.00479,3797.0,3796.8,0.076609]
[1641179663099,0.229991,3796.9,3796.7,0.128157]
[1641179663299,2.00479,3797.0,3796.7,0.128157]
[1641179663502,2.00479,3797.0,3796.6,0.7379]
[1641179663701,2.72689,3797.0,3796.5,1.78694748]
[1641179664602,2.72689,3797.0,3796.4,2.00479]
[1641179665904,2.72689,3797.0,3796.4,2.132947]
[1641179667805,2.72689,3797.0,3796.4,0.128157]
[1641179668207,2.72689,3797.0,3796.3,1.78694748]
[1641179669409,2.72689,3797.0,3796.5,0.89070975]
[1641179669808,2.00479,3796.6,3796.5,0.89070975]
[1641179670009,2.234781,3796.6,3796.5,0.96731875]
[1641179670209,2.234781,3796.6,3796.5,0.89070975]
[1641179670612,2.234781,3796.6,3796.4,0.89070975]
[1641179671111,2.00479,3796.6,3796.5,0.076609]
[1641179671312,2.234781,3796.6,3796.4,0.89070975]
[1641179673115,2.00479,3796.6,3796.5,0.076609]
[1641179673714,2.00479,3796.6,3796.5,0.96731875]
[1641179673916,2.234781,3796.6,3796.5,0.89070975]
[1641179674514,2.00479,3796.6,3796.5,0.076609]
[1641179677920,2.234781,3796.6,3796.3,1.18785896]
[1641179678121,2.00479,3796.6,3796.4,0.076609]
[1641179678820,0.229991,3796.5,3796.3,1.18785896]
[1641179679620,2.00479,3796.6,3796.4,0.076609]
[1641179680421,2.00479,3796.6,3796.5,0.34153883]
[1641179681123,0.5254,3796.8,3796.5,0.34153883]
[1641179681524,0.229991,3796.7,3796.5,0.34153883]
[1641179681725,0.5254,3796.8,3796.5,1.2321986]
[1641179681923,2.00479,3796.6,3796.5,1.2321986]
[1641179682524,2.00479,3796.6,3796.5,0.34153883]
[1641179682726,2.00479,3796.6,3796.5,0.076609]
[1641179684028,2.90037833,3796.6,3796.5,0.41814783]
[1641179684928,3.13036933,3796.6,3796.5,0.34153883]
[1641179685127,3.84136933,3796.6,3796.5,0.34153883]
[1641179685630,3.84136933,3796.6,3796.3,1.78694748]
[1641179685829,0.122356,3796.5,3796.2,1.78694748]
[1641179686028,2.234781,3796.4,3796.2,1.78694748]
[1641179687434,2.79458708,3796.4,3796.2,1.78694748]
[1641179687633,2.79458708,3796.4,3795.8,1.78694748]
[1641179688032,2.00479,3796.0,3795.8,1.78694748]
[1641179688231,0.229991,3795.9,3795.8,1.78694748]
[1641179688432,2.00479,3796.0,3795.7,2.87484017]
[1641179689130,0.229991,3795.9,3795.7,2.87484017]
[1641179689332,0.229991,3795.9,3795.7,2.53330134]
[1641179689533,2.00479,3796.0,3795.8,0.076609]
[1641179689733,2.00479,3796.0,3795.7,1.78694748]
[1641179690433,2.00479,3796.0,3795.8,0.076609]
[1641179690633,2.00479,3796.0,3795.9,0.34153883]
[1641179690835,2.234781,3796.0,3795.9,0.34153883]
[1641179691238,2.00479,3796.0,3795.9,0.34153883]
[1641179692037,2.234781,3796.0,3795.9,0.34153883]
[1641179692736,2.00479,3796.0,3795.9,0.41814783]
[1641179692937,2.00479,3796.0,3795.8,0.34153883]
[1641179692938,2.234781,3796.0,3795.8,0.34153883]
[1641179693738,2.234781,3796.0,3795.8,0.41814783]
[1641179694140,2.234781,3796.0,3795.8,0.34153883]
[1641179694338,2.234781,3796.0,3795.7,1.78694748]
[1641179694538,2.00479,3796.0,3795.7,1.78694748]
[1641179694739,2.00479,3796.0,3795.9,0.34153883]
[1641179695438,2.00479,3796.0,3795.7,2.12848631]
[1641179695938,2.00479,3796.0,3795.8,0.076609]
[1641179696843,2.234781,3796.0,3795.7,2.12848631]
[1641179697040,2.00479,3796.0,3795.9,0.076609]
[1641179697341,2.00479,3796.0,3795.9,0.34153883]
[1641179697541,2.234781,3796.0,3795.9,0.34153883]
[1641179697943,2.234781,3796.0,3795.8,1.78694748]
[1641179698746,1.622356,3795.9,3795.8,1.78694748]
[1641179698945,0.352347,3795.9,3795.5,4.48489538]
[1641179699543,29.22984504,3795.8,3795.5,4.48489538]
[1641179699944,0.229991,3795.7,3795.5,2.97972332]
[1641179700144,2.00479,3795.6,3795.5,2.97972332]
[1641179700344,2.00479,3795.6,3795.5,0.74635386]
[1641179700647,3.19501523,3795.6,3794.8,0.74635386]
[1641179701046,3.19501523,3795.6,3794.8,0.87451086]
[1641179701246,3.19501523,3795.6,3794.8,0.74635386]
[1641179701647,0.88975911,3795.3,3794.8,0.74635386]
[1641179702347,2.00479,3795.2,3794.8,0.74635386]
[1641179702548,2.61069,3795.2,3794.8,0.74635386]
[1641179703247,0.122356,3795.1,3794.8,0.74635386]
[1641179703451,0.229991,3795.0,3794.3,2.97458924]
[1641179703950,0.229991,3795.0,3794.6,0.746569]
[1641179704151,2.00479,3794.7,3794.6,0.746569]
[1641179704353,2.234781,3794.7,3794.3,2.97458924]
[1641179705850,1.5,3794.4,3794.3,0.84404306]
[1641179706051,7.70170777,3794.4,3793.7,3.36460938]
[1641179706252,6.827235,3793.8,3793.6,1.46312495]
[1641179706452,5.327235,3793.8,3793.6,1.46312495]
[1641179706955,0.229991,3793.7,3793.6,1.46312495]
[1641179707354,4.00958,3793.8,3793.6,1.53973395]
[1641179707551,4.00958,3793.8,3793.6,2.23812495]
[1641179707751,0.229991,3793.7,3793.6,2.23812495]
[1641179707952,0.229991,3793.7,3793.6,0.775]
[1641179708852,0.229991,3793.7,3792.6,25.79038208]
[1641179709052,0.229991,3793.7,3792.7,0.122356]
[1641179709456,0.229991,3793.7,3793.1,1.79209901]
[1641179709654,0.229991,3793.7,3793.2,0.128157]
[1641179710054,0.229991,3793.7,3793.1,1.79209901]
[1641179710252,2.00479,3793.4,3793.1,1.79209901]
[1641179710453,0.229991,3793.3,3793.1,1.79209901]
[1641179711555,0.229991,3793.3,3792.9,1.79209901]
[1641179711754,0.229991,3793.3,3792.9,1.92025601]
[1641179712655,0.229991,3793.3,3793.0,1.79209901]
[1641179713456,1.5,3793.1,3793.0,1.79209901]
[1641179713655,2.16200474,3793.1,3793.0,1.79209901]
[1641179714256,4.16679474,3793.1,3793.0,9.901e-05]
[1641179714458,4.16679474,3793.1,3792.7,2.24026463]
[1641179714660,4.16679474,3793.1,3792.8,2.24026463]
[1641179714858,1.5,3792.9,3792.8,2.24026463]
[1641179715057,1.729991,3792.9,3792.8,2.24026463]
[1641179715758,1.5481271,3792.9,3792.8,2.24026463]
[1641179716360,1.5481271,3792.9,3791.5,4.2852585]
[1641179716561,1.5,3791.6,3791.5,4.2852585]
[1641179716760,0.751891,3791.6,3791.5,4.2852585]
[1641179718261,6.261471,3791.6,3791.5,4.2852585]
[1641179718461,4.761471,3791.6,3791.5,4.2852585]
[1641179718763,6.07993731,3791.6,3791.5,0.58186892]
[1641179718962,6.07993731,3791.6,3790.7,2.24026463]
[1641179719363,6.07993731,3791.6,3790.8,0.128157]
[1641179720064,0.88713972,3791.0,3790.8,0.128157]
[1641179720271,0.88713972,3791.0,3790.9,0.076609]
[1641179720471,1.18141576,3791.3,3790.9,0.076609]
[1641179720663,0.74714126,3792.1,3790.9,0.076609]
[1641179720664,0.74714126,3792.1,3791.2,1.5]
[1641179720864,0.74714126,3792.1,3791.4,1.5]
[1641179721666,0.74714126,3792.2,3791.8,1.5]
[1641179721867,0.74714126,3792.2,3791.8,0.128157]
[1641179722068,0.74714126,3792.2,3791.3,1.622356]
[1641179722069,0.74714126,3792.2,3791.3,1.5]
[1641179722266,0.74714126,3792.2,3791.7,2.00479]
[1641179722766,2.00479,3792.6,3791.7,2.00479]
[1641179724371,2.00479,3792.6,3791.8,0.128157]
[1641179725679,2.00479,3792.6,3791.7,2.00479]
[1641179725878,15.22356008,3792.6,3791.7,2.00479]
[1641179726079,3.89356008,3792.6,3791.7,2.00479]
[1641179728282,1.77785192,3792.5,3791.7,2.00479]
[1641179729682,3.89356008,3792.6,3791.7,2.00479]
[1641179729683,1.77785192,3792.4,3791.7,2.00479]
[1641179729881,1.77785192,3792.4,3791.7,2.132947]
[1641179730685,1.48175138,3792.2,3791.7,2.132947]
[1641179731783,3.2596033,3792.5,3791.7,2.132947]
[1641179731984,1.48175138,3792.5,3792.1,1.19554232]
[1641179732784,2.00479,3792.6,3792.0,1.19554232]
[1641179732785,1.48175138,3792.3,3792.0,1.19554232]
[1641179733185,1.48175138,3792.3,3792.1,0.076609]
[1641179733583,0.229991,3792.2,3792.0,1.19554232]
[1641179733785,1.48175138,3792.3,3792.0,1.19554232]
[1641179733984,1.48175138,3792.3,3792.1,0.076609]
[1641179734985,1.71174238,3792.3,3792.1,0.076609]
[1641179735185,1.48175138,3792.3,3792.1,0.076609]
[1641179735987,1.48175138,3792.4,3792.1,0.076609]
[1641179736187,0.229991,3792.3,3792.1,1.27215132]
[1641179736388,0.5502,3792.3,3792.2,0.076609]
[1641179736988,0.5502,3792.3,3792.1,1.19554232]
[1641179737188,0.780191,3792.3,3792.1,1.19554232]
[1641179737590,0.5502,3792.3,3792.1,1.27215132]
[1641179738891,0.780191,3792.3,3792.1,1.27215132]
[1641179739090,0.5502,3792.3,3792.1,1.27215132]
[1641179740193,0.5502,3792.3,3792.1,0.076609]
[1641179740793,0.56042055,3792.2,3792.1,1.19554232]
[1641179741294,0.56042055,3792.2,3792.1,1.27215132]
[1641179741593,0.79041155,3792.2,3792.1,1.19554232]
[1641179742896,0.79041155,3792.2,3792.0,1.19554232]
[1641179743600,0.56042055,3792.1,3792.0,1.19554232]
[1641179743798,0.56042055,3792.1,3792.0,1.27215132]
[1641179744499,0.56042055,3792.1,3792.0,0.076609]
[1641179744699,0.56042055,3792.2,3792.0,0.076609]
[1641179744900,1.18626029,3792.1,3792.0,0.076609]
[1641179745399,1.41625129,3792.1,3791.7,2.132947]
[1641179745699,1.18626029,3792.1,3791.7,2.132947]
[1641179745901,1.18626029,3792.1,3791.7,0.128157]
[1641179746102,1.74668084,3792.2,3791.7,0.128157]
[1641179746302,2.00479,3791.8,3791.7,0.128157]
[1641179746600,2.00479,3791.8,3791.7,0.204766]
[1641179747002,2.234781,3791.8,3791.6,1.5]
[1641179747403,2.234781,3791.8,3791.5,3.29345021]
[1641179747602,2.00479,3791.8,3791.6,0.076609]
[1641179747804,2.00479,3791.8,3791.7,1.79345021]
[1641179748905,2.234781,3791.8,3791.7,1.79345021]
[1641179749106,2.56526014,3791.8,3791.7,1.79345021]
[1641179749306,2.56526014,3791.8,3791.5,1.5]
[1641179750005,2.56526014,3791.8,3791.6,0.076609]
[1641179750207,0.229991,3791.7,3791.5,1.5]
[1641179750408,0.88954658,3791.6,3791.5,1.5]
[1641179750807,0.88954658,3791.6,3791.5,1.576609]
[1641179751211,0.88954658,3791.6,3791.5,0.076609]
[1641179751409,2.00479,3791.8,3791.5,1.576609]
[1641179751410,0.88954658,3791.7,3791.5,1.576609]
[1641179751908,0.229991,3791.6,3791.5,1.5]
[1641179752109,0.88954658,3791.7,3791.5,1.5]
[1641179752809,0.88954658,3791.7,3791.3,1.79345021]
[1641179753210,0.88954658,3791.7,3791.5,1.5]
[1641179753411,1.11953758,3791.7,3791.5,1.5]
[1641179753813,1.11953758,3791.7,3791.4,1.5]
[1641179754110,0.88954658,3791.7,3791.5,0.076609]
[1641179754312,0.229991,3791.6,3791.4,1.5]
[1641179754611,0.88954658,3791.7,3791.4,1.5]
[1641179755011,0.88954658,3791.7,3791.5,0.076609]
[1641179756316,0.88954658,3791.6,3791.5,0.076609]
[1641179757115,0.88954658,3791.6,3791.4,1.5]
[1641179757515,2.89433658,3791.8,3791.4,3.29345021]
[1641179758415,2.89433658,3791.8,3791.5,1.79345021]
[1641179758816,0.229991,3791.7,3791.5,1.79345021]
[1641179759218,2.89433658,3791.8,3791.5,1.79345021]
[1641179759518,2.00479,3791.8,3791.5,1.79345021]
[1641179759818,0.229991,3791.7,3791.5,1.79345021]
[1641179760018,2.00479,3791.8,3791.5,1.79345021]
[1641179760618,2.00479,3791.8,3791.6,0.076609]
[1641179761121,0.88954658,3791.7,3791.6,0.076609]
[1641179762924,1.11953758,3791.7,3791.3,1.79345021]
[1641179763123,0.88954658,3791.7,3791.4,1.5]
[1641179763725,1.11953758,3791.6,3791.4,1.5]
[1641179763926,1.11953758,3791.6,3791.2,1.92160721]
[1641179764125,1.11953758,3791.6,3791.4,1.5]
[1641179764525,1.11953758,3791.6,3791.2,1.79345021]
[1641179765327,0.88954658,3791.5,3791.2,1.79345021]
[1641179765526,0.229991,3791.4,3791.2,1.79345021]
[1641179766532,2.00479,3791.3,3791.2,1.79345021]
[1641179766930,3.19105029,3791.3,3791.2,1.1958225]
[1641179767929,2.00479,3791.3,3791.2,1.1958225]
[1641179768330,2.5653318,3791.3,3791.1,1.1958225]
[1641179768532,0.229991,3791.2,3791.1,1.1958225]
[1641179768729,0.932891,3791.2,3791.1,1.1958225]
[1641179769531,0.932891,3791.2,3790.6,2.37531913]
[1641179769731,1.4934328,3791.2,3791.0,1.19578921]
[1641179770535,1.4934328,3791.2,3790.5,1.79345021]
[1641179770732,1.4934328,3791.2,3790.4,0.58186892]
[1641179770733,2.00479,3790.8,3790.4,0.58186892]
[1641179772435,0.88931247,3790.6,3790.5,0.13676005]
[1641179772634,0.88931247,3790.6,3790.5,0.21336905]
[1641179773235,0.5605418,3790.7,3790.5,0.21336905]
[1641179774336,0.8892578,3790.6,3790.5,0.076609]
[1641179775137,1.48175138,3791.2,3790.6,1.29548786]
[1641179775336,1.48175138,3791.2,3790.7,1.5]
[1641179775737,3.48654138,3791.3,3790.7,1.5]
[1641179776136,3.48654138,3791.3,3790.6,1.17313186]
[1641179776741,1.48175138,3791.3,3790.8,2.00479]
[1641179777740,1.48175138,3791.6,3790.8,2.00479]
[1641179778541,1.48175138,3791.5,3790.8,2.00479]
[1641179778739,1.48175138,3791.5,3790.8,3.50479]
[1641179779741,3.48654138,3791.7,3790.8,3.79824021]
[1641179780544,3.48654138,3791.7,3790.8,5.29824021]
[1641179780744,1.18675822,3791.4,3791.3,1.19570747]
[1641179780946,1.18675822,3791.4,3791.3,1.97507347]
[1641179781147,1.18675822,3791.4,3791.3,3.47507347]
[1641179781344,1.18675822,3791.4,3791.3,1.97507347]
[1641179781546,1.18675822,3791.4,3791.3,0.779366]
[1641179781848,3.19154822,3791.7,3791.3,2.279366]
[1641179782747,3.19154822,3791.7,3791.3,0.779366]
[1641179782946,3.19154822,3791.7,3791.3,0.5746]
[1641179783349,2.00479,3791.7,3791.3,0.5746]
[1641179783751,2.00479,3791.7,3791.1,1.92160721]
[1641179784550,1.18675822,3791.6,3791.5,1.19565115]
[1641179784750,1.41674922,3791.6,3791.5,1.19565115]
[1641179785049,1.18675822,3791.6,3791.5,1.19565115]
[1641179785250,1.18675822,3791.6,3791.1,0.128157]
[1641179786952,2.00479,3791.7,3791.5,1.19567837]
[1641179787150,0.229991,3791.6,3791.5,1.19567837]
[1641179787950,0.229991,3791.6,3791.1,0.128157]
[1641179788151,0.229991,3791.6,3791.1,1.92160721]
[1641179788751,2.00479,3791.7,3791.1,1.92160721]
[1641179791353,2.00479,3791.7,3791.6,1.19563564]
[1641179791552,2.234781,3791.7,3791.6,1.19563564]
[1641179793854,2.00479,3791.7,3791.6,1.27224464]
[1641179794258,2.234781,3791.7,3791.4,1.19563564]
[1641179795159,3.71653238,3791.7,3791.4,1.19563564]
[1641179796758,0.56048472,3791.6,3791.4,1.19563564]
[1641179796959,2.06048472,3791.6,3791.4,1.19563564]
[1641179797158,0.229991,3791.5,3790.8,1.79345021]
[1641179797358,1.046791,3791.5,3790.8,1.79345021]
[1641179797959,1.83803666,3791.5,3790.8,1.79345021]
[1641179798862,2.00479,3790.9,3790.8,1.79345021]
[1641179799063,2.234781,3790.9,3790.6,0.58186892]
[1641179799262,2.234781,3790.9,3790.7,0.076609]
[1641179799464,2.234781,3790.9,3790.6,0.58186892]
[1641179800363,0.56048472,3790.8,3790.2,1.79345021]
[1641179800562,0.56048472,3790.8,3790.2,1.92160721]
[1641179801367,0.88918794,3790.5,3790.2,1.92160721]
[1641179801565,0.88918794,3790.5,3790.3,0.076609]
[1641179803268,2.89397794,3790.9,3790.3,2.31687363]
[1641179803666,0.88918794,3790.9,3790.3,2.31687363]
[1641179804068,1.48175138,3791.5,3790.3,2.31687363]
[1641179804268,0.88956186,3791.0,3790.7,1.79367646]
[1641179804470,0.88956186,3791.0,3790.8,0.076609]
[1641179805068,1.5,3791.3,3790.7,1.79367646]
[1641179806069,0.56051416,3791.2,3790.5,2.00479]
[1641179808373,2.04226554,3791.2,3790.5,2.00479]
[1641179808573,1.18559897,3791.0,3790.9,1.19588385]
[1641179809674,0.229991,3791.1,3790.5,2.00479]
[1641179809872,1.5,3791.3,3790.5,2.00479]
[1641179810675,1.5,3791.3,3790.6,0.128157]
[1641179812474,1.5,3791.3,3790.5,2.00479]
[1641179813374,1.5,3791.3,3790.1,1.19588385]
[1641179814278,33.72741068,3791.6,3790.1,1.19588385]
[1641179814477,1.5,3791.3,3790.1,1.19588385]
[1641179814882,2.00479,3790.7,3790.2,0.1331618]
[1641179815086,2.00479,3790.7,3790.3,0.128157]
[1641179816886,2.00479,3790.7,3790.4,0.1331618]
[1641179817085,2.00479,3790.7,3790.5,0.076609]
[1641179818087,2.00479,3790.7,3790.6,0.1331618]
[1641179818487,1.48175138,3791.4,3790.7,12.28338176]